fUSD/lending_fUSD_20240518
["ID","MTS","AMOUNT","RATE_DAILY","PERIOD"]
[327421019,1716061838704,-47953.02676342,0.0001726,2]
[327421020,1716061838717,-319444.22804136,0.0001726,2]
[327421021,1716061838744,-47051.51123025,0.0001726,2]
[327421022,1716061838820,-285.04879978,0.0001726,2]
[327421023,1716061838843,-8439.96601996,0.0001726,2]
[327421025,1716061840287,-1444.0,0.0001726,2]
[327421026,1716061840307,-774.20099961,0.0001726,2]
[327421027,1716061840318,-936.19999999,0.0001726,2]
[327421028,1716061840330,-2111.2071548,0.0001726,2]
[327421029,1716061840386,-57697.29678804,0.0001726,2]
[327421030,1716061840427,-89359.57652905,0.0001726,2]
[327421031,1716061840439,-160504.76847774,0.0001726,2]
[327421032,1716061840539,-5196.0,0.0001726,2]
[327421034,1716061840551,-6807.5000025,0.0001726,2]
[327421049,1716061843155,-41333.00548487,0.0001726,2]
[327421052,1716061846031,-626.97887009,0.0001726,2]
[327421053,1716061846071,-16654.23673131,0.0001726,2]
[327421054,1716061846082,-2957.21493839,0.0001726,2]
[327421055,1716061846130,-1288.24683318,0.0001726,2]
[327421056,1716061846141,-285.5184421,0.0001726,2]
[327421057,1716061846154,-1658.72364799,0.0001726,2]
[327421058,1716061846166,-1313.57153753,0.0001726,2]
[327421059,1716061846187,-811.0,0.0001726,2]
[327421060,1716061846198,-1117.65997474,0.0001726,2]
[327421061,1716061846244,-1413.0944,0.0001726,2]
[327421062,1716061846322,-316.01403212,0.0001726,2]
[327421076,1716062176700,-344.36762572,0.00014502,2]
[327421077,1716062176722,-803.52867756,0.00014502,2]
[327421078,1716062176744,-10524.20460299,0.00014503,2]
[327421079,1716062176765,-2917.62814484,0.00014504,2]
[327421080,1716062176786,-204.82140187,0.00014504,2]
[327421081,1716062176808,-159.4,0.0001451,2]
[327421082,1716062176832,-2377.75,0.00016108,2]
[327421083,1716062176853,-1294.59710726,0.00016195,2]
[327421084,1716062176877,-1100.0,0.000162,5]
[327421085,1716062176898,-155.03,0.00016277,2]
[327421086,1716062176920,-2200.0,0.000163,5]
[327421087,1716062176942,-3300.0,0.000164,5]
[327421088,1716062176964,-4500.0,0.000165,6]
[327421089,1716062176986,-250.0,0.00016529,2]
[327421090,1716062177163,-5600.0,0.000166,6]
[327421091,1716062177186,-1100.0,0.000167,6]
[327421092,1716062177207,-1100.0,0.000168,6]
[327421093,1716062177228,-1100.0,0.000169,6]
[327421094,1716062177250,-276038.60919066,0.00017159,2]
[327421095,1716062177271,-5930.0632491,0.0001716,2]
[327421096,1716062198997,179.07,0.00027406,120]
[327421122,1716063032476,-524.53638538,0.000149,2]
[327421123,1716063032485,-375.46361462,0.00014908,2]
[327421124,1716063032532,-1194.86574138,0.00014908,2]
[327421125,1716063032542,-159.93,0.00014985,2]
[327421126,1716063032551,-1584.49,0.00016155,2]
[327421127,1716063032561,-718.9,0.00016187,3]
[327421128,1716063032570,-12341.81425862,0.00016196,2]
[327421151,1716063038557,-1128.24841438,0.00016196,2]
[327421152,1716063038721,-450.89332225,0.00016196,2]
[327421153,1716063038733,-1363.39024112,0.00016196,2]
[327421154,1716063038744,-8615.65376363,0.00016196,2]
[327421155,1716063038754,-956.03,0.00016412,2]
[327421156,1716063038763,-177.68,0.00016495,2]
[327421157,1716063038773,-245.22,0.00016536,2]
[327421158,1716063038783,-158.47352896,0.00016999,2]
[327421159,1716063038793,-692.88,0.00017,2]
[327421169,1716063038925,-157.051905,0.00017068,3]
[327421170,1716063038935,-158.47352896,0.00017078,2]
[327421171,1716063038944,-157.051905,0.00017078,3]
[327421172,1716063038954,-157.051905,0.00017088,3]
[327421173,1716063038964,-157.051905,0.00017098,3]
[327421174,1716063038973,-157.051905,0.00017108,3]
[327421175,1716063038983,-157.051905,0.00017118,3]
[327421176,1716063038993,-157.051905,0.00017128,3]
[327421177,1716063039003,-157.051905,0.00017138,3]
[327421178,1716063039013,-157.051905,0.00017148,3]
[327421179,1716063039024,-158.47352896,0.00017156,2]
[327421180,1716063039034,-10418.73419466,0.0001716,2]
[327421181,1716063039044,-316.43972258,0.0001716,2]
[327421182,1716063039056,-19867.10848177,0.0001716,2]
[327421183,1716063039066,-1501.77727144,0.00017199,2]
[327421184,1716063039076,-416498.453229,0.000172,2]
[327421185,1716063039085,-157.051905,0.00017208,3]
[327421186,1716063039096,-157.051905,0.00017218,3]
[327421187,1716063039106,-157.051905,0.00017228,3]
[327421188,1716063039116,-157.051905,0.00017238,3]
[327421189,1716063039127,-157.051905,0.00017248,3]
[327421190,1716063039137,-387.93842144,0.00017256,2]
[327421191,1716063039147,-155.0,0.00017256,2]
[327421192,1716063039160,-156.4545868,0.00017256,2]
[327421193,1716063039172,-535.6337843,0.00017256,2]
[327421194,1716063039183,-238.56428051,0.00017257,2]
[327421195,1716063039193,-155.0,0.00017257,2]
[327421196,1716063039206,-327.32319292,0.00017257,2]
[327421197,1716063039216,-643.1326905,0.00017257,2]
[327421198,1716063039226,-324.70535522,0.00017257,2]
[327421199,1716063039236,-155.08937966,0.00017257,2]
[327421200,1716063039246,-273.57519809,0.00017257,2]
[327421201,1716063039257,-155.05385203,0.00017257,2]
[327421202,1716063039267,-245.34653032,0.00017257,2]
[327421203,1716063039278,-299.26880595,0.00017257,2]
[327421204,1716063039288,-296.9803704,0.00017257,2]
[327421205,1716063039300,-266.19309669,0.00017257,2]
[327421206,1716063039309,-445.90079113,0.00017257,2]
[327421207,1716063039319,-155.15563313,0.00017257,2]
[327421208,1716063039329,-193.10071785,0.00017257,2]
[327421209,1716063039340,-376.53795914,0.00017257,2]
[327421210,1716063039350,-155.0,0.00017257,2]
[327421211,1716063039359,-155.0001,0.00017257,2]
[327421212,1716063039369,-209.51546979,0.00017257,2]
[327421213,1716063039379,-252.03630732,0.00017257,2]
[327421214,1716063039389,-188.22539335,0.00017257,2]
[327421215,1716063039399,-8214.99668936,0.00017257,2]
[327421216,1716063039410,-157.051905,0.00017258,3]
[327421217,1716063039420,-281.77826191,0.00017258,2]
[327421218,1716063039431,-11223.8251028,0.00017258,2]
[327421219,1716063039441,-4235.8236113,0.00017258,2]
[327421220,1716063039451,-60239.5145025,0.00017258,2]
[327421221,1716063039461,-401786.81544831,0.00017259,2]
[327421222,1716063039471,-5868.27204931,0.00017259,2]
[327421223,1716063039481,-300.02,0.00017259,2]
[327421224,1716063039490,-150.0,0.00017259,2]
[327421225,1716063039501,-150.0,0.00017259,2]
[327421226,1716063039511,-150.0,0.00017259,2]
[327421227,1716063039521,-230.9764503,0.00017259,2]
[327421228,1716063039530,-1546976.29954144,0.0001726,2]
[327421229,1716063039542,-729544.56141979,0.0001726,2]
[327421230,1716063039556,-562494.1823862,0.0001726,2]
[327421231,1716063039567,-1912.61633521,0.0001726,2]
[327421232,1716063039578,-3130.9824386,0.0001726,2]
[327421233,1716063039590,-25861.0005,0.0001726,2]
[327421234,1716063039602,-8616.1,0.0001726,2]
[327421235,1716063039614,-3873.9,0.0001726,2]
[327421236,1716063039625,-11911.0,0.0001726,2]
[327421237,1716063039645,-3081.59999997,0.0001726,2]
[327421239,1716063040538,-604.57264203,0.0001726,2]
[327421474,1716063046476,-153.93007133,0.00017,4]
[327421475,1716063046486,-603.46831461,0.00017259,2]
[327421476,1716063046534,-563.08693344,0.00017259,2]
[327421479,1716063046763,-895.53821745,0.00017259,2]
[327421480,1716063046772,-5935.06845283,0.0001726,2]
[327421481,1716063046783,-2166.12962149,0.0001726,2]
[327421485,1716064062411,167.62,0.00012185,2]
[327421492,1716064187356,-656.33285692,0.00013333,2]
[327421493,1716064187377,-516.02698843,0.00013333,2]
[327421494,1716064187398,-266.26956898,0.00013333,2]
[327421495,1716064187418,-686.12362517,0.00013334,2]
[327421496,1716064187438,-155.0,0.00013334,2]
[327421497,1716064187459,-155.0,0.00013334,2]
[327421498,1716064187480,-159.93,0.00013337,2]
[327421501,1716064231574,-472.14322502,0.000134,2]
[327421502,1716064231748,-281.19172138,0.000134,2]
[327421503,1716064231759,-336.50927152,0.000134,2]
[327421504,1716064231875,-427.79140906,0.000134,2]
[327421505,1716064231884,-156.54,0.00013973,2]
[327421506,1716064231894,-112.53739515,0.00015163,2]
[327421528,1716064237535,-479.23585153,0.00015163,2]
[327421529,1716064237656,-1473.12675332,0.00015163,2]
[327421530,1716064237667,-44.38307121,0.00015212,2]
[327421531,1716064237719,-504.21309168,0.00015212,2]
[327421532,1716064237781,-8716.18383711,0.00015212,2]
[327421533,1716064237791,-178.86,0.00015255,2]
[327421534,1716064237800,-428.07,0.00015262,2]
[327421535,1716064237809,-764.83,0.00015285,2]
[327421536,1716064237819,-150.0,0.00015303,2]
[327421537,1716064237828,-177.68,0.0001531,2]
[327421538,1716064237837,-197.66,0.0001535,2]
[327421539,1716064237847,-250.0,0.00015399,2]
[327421540,1716064237856,-413.01,0.00016021,2]
[327421541,1716064237865,-413.01,0.00016025,2]
[327421542,1716064237874,-413.01,0.00016029,2]
[327421543,1716064237883,-413.01,0.00016034,2]
[327421544,1716064237892,-413.01,0.00016038,2]
[327421545,1716064237901,-413.01,0.00016042,2]
[327421546,1716064237911,-413.01,0.00016046,2]
[327421547,1716064237920,-413.01,0.0001605,2]
[327421548,1716064237929,-413.01,0.00016055,2]
[327421549,1716064237938,-413.01,0.00016059,2]
[327421550,1716064237948,-413.01,0.00016063,2]
[327421551,1716064237957,-413.01,0.00016067,2]
[327421552,1716064237967,-413.01,0.00016072,2]
[327421553,1716064237976,-413.01,0.00016076,2]
[327421554,1716064237986,-413.01,0.0001608,2]
[327421555,1716064237996,-413.01,0.00016084,2]
[327421556,1716064238005,-413.01,0.00016088,2]
[327421557,1716064238015,-413.01,0.00016093,2]
[327421558,1716064238024,-413.01,0.00016097,2]
[327421559,1716064238034,-413.01,0.00016101,2]
[327421560,1716064238044,-235.17,0.00016128,2]
[327421561,1716064238054,-2700.0,0.000163,5]
[327421562,1716064238064,-298.44,0.00016369,2]
[327421563,1716064238074,-5400.0,0.000164,5]
[327421564,1716064238083,-8200.0,0.000165,6]
[327421565,1716064238191,-10900.0,0.000166,6]
[327421566,1716064238201,-415.26,0.00016641,2]
[327421567,1716064238211,-13600.0,0.000167,6]
[327421568,1716064238220,-840.96,0.00016778,2]
[327421569,1716064238230,-2700.0,0.000168,6]
[327421570,1716064238239,-2700.0,0.000169,6]
[327421571,1716064238249,-10000.0,0.00017,2]
[327421572,1716064238258,-544.965,0.000171,2]
[327421573,1716064238267,-200.0,0.00017121,2]
[327421574,1716064238276,-1000.0,0.00017121,2]
[327421575,1716064238285,-200.0,0.00017121,2]
[327421576,1716064238295,-500.0,0.00017121,2]
[327421577,1716064238304,-200.0,0.00017121,2]
[327421578,1716064238313,-1000.0,0.00017121,2]
[327421579,1716064238322,-500.0,0.00017121,2]
[327421580,1716064238332,-200.0,0.00017122,2]
[327421581,1716064238342,-200.0,0.00017122,2]
[327421582,1716064238351,-1000.0,0.00017122,2]
[327421583,1716064238361,-1000.0,0.00017122,2]
[327421584,1716064238370,-1000.0,0.00017122,2]
[327421585,1716064238379,-200.0,0.00017122,2]
[327421586,1716064238389,-200.0,0.00017122,2]
[327421587,1716064238398,-500.0,0.00017122,2]
[327421588,1716064238407,-500.0,0.00017122,2]
[327421589,1716064238417,-361.09602746,0.00017157,2]
[327421590,1716064238427,-274.62376777,0.00017157,2]
[327421591,1716064238436,-214.51359259,0.00017157,2]
[327421592,1716064238445,-503.85224682,0.00017157,2]
[327421593,1716064238454,-437.5018624,0.00017158,2]
[327421594,1716064238464,-175.90678897,0.00017158,2]
[327421595,1716064238473,-764.56629757,0.00017158,2]
[327421596,1716064238483,-261234.2608,0.00017159,2]
[327421597,1716064238492,-21924.35021309,0.0001716,2]
[327421598,1716064238502,-164.23608416,0.0001716,2]
[327421599,1716064238512,-764.83,0.00017195,2]
[327421600,1716064238521,-30000.0,0.0001725,2]
[327421601,1716064238531,-281.77826191,0.00017257,2]
[327421602,1716064238540,-209.51546979,0.00017257,2]
[327421603,1716064238550,-155.0001,0.00017257,2]
[327421604,1716064238560,-252.03630732,0.00017257,2]
[327421605,1716064238570,-445.90079113,0.00017257,2]
[327421606,1716064238580,-155.15563313,0.00017257,2]
[327421607,1716064238590,-188.22539335,0.00017257,2]
[327421608,1716064238604,-155.0,0.00017257,2]
[327421609,1716064238615,-376.53795914,0.00017257,2]
[327421610,1716064238624,-193.10071785,0.00017257,2]
[327421611,1716064238635,-8214.99668936,0.00017257,2]
[327421612,1716064238645,-296.9803704,0.00017257,2]
[327421613,1716064238656,-299.26880595,0.00017257,2]
[327421614,1716064238666,-273.57519809,0.00017257,2]
[327421615,1716064238677,-155.05385203,0.00017257,2]
[327421616,1716064238687,-324.70535522,0.00017257,2]
[327421617,1716064238696,-155.08937966,0.00017257,2]
[327421618,1716064238706,-327.32319292,0.00017257,2]
[327421619,1716064238715,-238.56428051,0.00017257,2]
[327421620,1716064238725,-155.0,0.00017257,2]
[327421621,1716064238735,-245.34653032,0.00017257,2]
[327421622,1716064238744,-156.4545868,0.00017257,2]
[327421623,1716064238754,-643.1326905,0.00017257,2]
[327421624,1716064238763,-535.6337843,0.00017257,2]
[327421625,1716064238774,-387.93842144,0.00017257,2]
[327421626,1716064238783,-157.051905,0.00017257,3]
[327421627,1716064238803,-157.051905,0.00017257,3]
[327421628,1716064238818,-46238.07129556,0.00017257,2]
[327421629,1716064238838,-19584.64571004,0.00017257,2]
[327421630,1716064238857,-155.17178027,0.00017258,2]
[327421631,1716064238877,-2382.39921483,0.00017258,2]
[327421632,1716064238893,-155.76948322,0.00017258,2]
[327421633,1716064238911,-155.89300007,0.00017258,2]
[327421634,1716064238925,-155.0,0.00017258,2]
[327421635,1716064238941,-157.90429605,0.00017258,2]
[327421636,1716064238960,-430.87701931,0.00017258,2]
[327421637,1716064238978,-192.82741751,0.00017258,2]
[327421638,1716064238990,-749.06207595,0.00017258,2]
[327421639,1716064239009,-155.0,0.00017258,2]
[327421640,1716064239023,-269.87300239,0.00017258,2]
[327421641,1716064239041,-155.0,0.00017258,2]
[327421642,1716064239055,-200.80038782,0.00017258,2]
[327421643,1716064239071,-16773.36788953,0.00017258,2]
[327421644,1716064239090,-155.0,0.00017258,2]
[327421645,1716064239108,-165.11112073,0.00017258,2]
[327421646,1716064239123,-172.5998299,0.00017258,2]
[327421647,1716064239139,-180.99989025,0.00017258,2]
[327421648,1716064239155,-157.051905,0.00017258,3]
[327421649,1716064239173,-157.051905,0.00017258,3]
[327421650,1716064239189,-157.051905,0.00017258,3]
[327421651,1716064239205,-157.051905,0.00017258,3]
[327421652,1716064239222,-936.0,0.00017259,2]
[327421653,1716064239239,-193.01543963,0.00017259,2]
[327421654,1716064239255,-3778.05622727,0.00017259,2]
[327421655,1716064239271,-7506.69243159,0.00017259,2]
[327421656,1716064239287,-5266.11358225,0.00017259,2]
[327421657,1716064239303,-536385.29157911,0.00017259,2]
[327421658,1716064239318,-150.01,0.00017259,2]
[327421659,1716064239334,-3810.16441136,0.00017259,2]
[327421660,1716064239350,-150.0,0.00017259,2]
[327421661,1716064239367,-150.0,0.00017259,2]
[327421662,1716064239383,-150.0,0.00017259,2]
[327421663,1716064239399,-150.0,0.00017259,2]
[327421664,1716064239414,-150.0,0.00017259,2]
[327421665,1716064239429,-150.0,0.00017259,2]
[327421666,1716064239445,-150.0,0.00017259,2]
[327421667,1716064239461,-150.0,0.00017259,2]
[327421668,1716064239477,-981044.00620007,0.0001726,2]
[327421669,1716064239498,-729544.56141979,0.0001726,2]
[327421670,1716064239515,-562494.1823862,0.0001726,2]
[327421671,1716064239534,-586.27968751,0.0001726,2]
[327421672,1716064239612,-412.90700345,0.0001726,2]
[327421673,1716064239631,-1978.40158812,0.0001726,2]
[327421674,1716064240178,-1187.08841412,0.0001726,2]
[327421677,1716064240190,-7889.1587077,0.0001726,2]
[327421682,1716064240219,-379.9422459,0.0001726,2]
[327421684,1716064240231,-1016.3771555,0.0001726,2]
[327421685,1716064240243,-1446.24586566,0.0001726,2]
[327421686,1716064240255,-936.95000003,0.0001726,2]
[327421687,1716064240266,-2338.46359572,0.0001726,2]
[327421688,1716064240290,-6201605.17125162,0.0001726,2]
[327421689,1716064240322,-290.646,0.0001726,2]
[327421690,1716064240795,-2170179.28691034,0.0001726,2]
[327421691,1716064240804,-289.49063762,0.0001726,2]
[327421692,1716064240815,-409.57557879,0.0001726,2]
[327421693,1716064240825,-345.13077043,0.0001726,2]
[327421694,1716064240835,-1038.65205609,0.0001726,2]
[327421695,1716064240846,-1043.0920579,0.0001726,2]
[327421696,1716064240856,-3000.0,0.0001726,2]
[327421697,1716064240987,-21398.2209569,0.00017264,2]
[327421698,1716064240998,-10837.088659,0.00017264,2]
[327421699,1716064241007,-202.8948831,0.00017264,2]
[327421700,1716064241017,-606.3891532,0.00017264,2]
[327421701,1716064241027,-59818.5281278,0.00017264,2]
[327421702,1716064241037,-804.3015877,0.00017264,2]
[327421703,1716064241047,-3545.6518493,0.00017264,2]
[327421704,1716064241057,-279.4451031,0.00017264,2]
[327421705,1716064241067,-12864.7239701,0.00017264,2]
[327421706,1716064241077,-996.1670855,0.00017276,2]
[327421707,1716064241087,-212.4,0.000173,2]
[327421708,1716064241097,-159.93,0.00017638,2]
[327421709,1716064241108,-178.86,0.00017797,2]
[327421710,1716064241117,-2064.9,0.00017903,2]
[327421711,1716064241128,-17620.0,0.00017992,3]
[327421712,1716064241138,-13891.0,0.00017996,3]
[327421713,1716064241147,-235.17,0.00018145,2]
[327421714,1716064241157,-21924.350213,0.00018472,2]
[327421715,1716064241167,-1866.90474138,0.00019,5]
[327421716,1716064241177,-764.83,0.00019106,2]
[327421717,1716064241187,-404.4,0.000192,2]
[327421718,1716064241196,-21924.350213,0.00019785,2]
[327421719,1716064241206,-249.04337147,0.00019998,2]
[327421720,1716064241215,-345.16221939,0.0002,2]
[327421721,1716064241225,-155.0,0.0002,2]
[327421722,1716064241235,-235.17,0.00020161,2]
[327421723,1716064241244,-178.86,0.00020339,2]
[327421724,1716064241254,-2064.9,0.00020643,2]
[327421725,1716064241264,-764.83,0.00021017,2]
[327421726,1716064241273,-21924.350213,0.00021097,2]
[327421727,1716064241283,-159.93,0.0002194,2]
[327421728,1716064241293,-811.0,0.000221,2]
[327421729,1716064241303,-235.17,0.00022177,2]
[327421730,1716064241312,-3000.0,0.0002226,2]
[327421731,1716064241322,-164.23608416,0.00022366,2]
[327421732,1716064241331,-21924.350213,0.00022409,2]
[327421733,1716064241341,-306.0,0.000225,2]
[327421734,1716064241351,-178.86,0.00022882,2]
[327421735,1716064241362,-764.83,0.00022927,2]
[327421736,1716064241372,-2632.0,0.000232,2]
[327421737,1716064241381,-306.0,0.0002334,2]
[327421738,1716064241391,-156.54,0.00023435,2]
[327421739,1716064241401,-21924.350213,0.00023722,2]
[327421740,1716064241411,-209.0,0.0002417,2]
[327421741,1716064241420,-306.0,0.0002417,2]
[327421742,1716064241430,-235.17,0.00024193,2]
[327421743,1716064241440,-250.0,0.00024658,2]
[327421744,1716064241449,-1095.2,0.00024877,2]
[327421745,1716064241459,-209.0,0.0002501,2]
[327421746,1716064241469,-306.0,0.0002501,2]
[327421747,1716064241480,-21924.350213,0.00025034,2]
[327421748,1716064241489,-209.0,0.0002584,2]
[327421749,1716064241499,-306.0,0.0002584,2]
[327421750,1716064241509,-426.82,0.0002611,2]
[327421751,1716064241519,-523.82,0.0002611,2]
[327421752,1716064241528,-150.0,0.0002611,2]
[327421753,1716064241537,-150.0,0.0002611,2]
[327421754,1716064241547,-234.58,0.0002611,2]
[327421755,1716064241556,-150.0,0.0002611,2]
[327421756,1716064241566,-150.0,0.0002611,2]
[327421757,1716064241575,-163.39,0.0002611,2]
[327421758,1716064241585,-150.0,0.0002611,2]
[327421759,1716064241597,-351.66,0.0002611,2]
[327421760,1716064241608,-523.82,0.0002611,2]
[327421761,1716064241618,-523.82,0.0002611,2]
[327421762,1716064241627,-163.39,0.0002611,2]
[327421763,1716064241637,-351.66,0.0002611,2]
[327421764,1716064241647,-150.0,0.0002611,2]
[327421765,1716064241657,-150.0,0.0002611,2]
[327421766,1716064241666,-150.0,0.0002611,2]
[327421767,1716064241677,-351.66,0.0002611,2]
[327421768,1716064241687,-523.82,0.0002611,2]
[327421769,1716064241697,-522.77,0.0002611,2]
[327421770,1716064241706,-159.93,0.00026241,2]
[327421771,1716064241716,-21924.350213,0.00026347,2]
[327421772,1716064241726,-620.596,0.00026393,2]
[327421773,1716064241736,-168.756,0.00026393,2]
[327421774,1716064241745,-592.369,0.00026393,2]
[327421775,1716064241755,-809.0,0.00026393,2]
[327421776,1716064241765,-439.0,0.00026393,2]
[327421777,1716064241774,-155.616,0.00026393,2]
[327421778,1716064241784,-1647.0,0.00026393,2]
[327421779,1716064241794,-1977.0,0.00026393,2]
[327421780,1716064241803,-153.805,0.00026393,2]
[327421781,1716064241813,-3159.0,0.00026393,2]
[327421782,1716064241823,-219.0,0.00026393,2]
[327421783,1716064241832,-1137.0,0.00026393,2]
[327421784,1716064241841,-5754.0,0.00026393,2]
[327421785,1716064241851,-986.946,0.00026393,2]
[327421786,1716064241861,-5915.0,0.00026393,2]
[327421787,1716064241871,-289.0,0.00026393,2]
[327421788,1716064241880,-37862.0,0.00026393,2]
[327421789,1716064241891,-2159.0,0.00026393,2]
[327421790,1716064241900,-1500.885,0.00026393,2]
[327421791,1716064241910,-209.0,0.0002667,2]
[327421792,1716064241919,-306.0,0.0002667,2]
[327421793,1716064241928,-2700.0,0.000269,9]
[327421794,1716064241938,-3000.0,0.0002726,2]
[327421795,1716064241947,-3227.9123937,0.0002727,2]
[327421796,1716064241957,-150.0,0.00027396,2]
[327421797,1716064241966,-500.0,0.00027397,2]
[327421798,1716064241975,-500.0,0.00027397,2]
[327421799,1716064241985,-500.0,0.00027397,2]
[327421800,1716064241994,-500.0,0.00027397,2]
[327421801,1716064242004,-500.0,0.00027397,2]
[327421802,1716064242012,-500.0,0.00027397,2]
[327421803,1716064242022,-500.0,0.00027397,2]
[327421804,1716064242031,-500.0,0.00027397,2]
[327421805,1716064242041,-500.0,0.00027397,2]
[327421806,1716064242050,-500.0,0.00027397,2]
[327421807,1716064242059,-506.74479064,0.00027397,2]
[327421808,1716064242068,-508.16373217,0.00027397,2]
[327421809,1716064242079,-500.0,0.00027397,2]
[327421810,1716064242088,-500.0,0.00027397,2]
[327421811,1716064242097,-504.29341706,0.00027397,2]
[327421812,1716064242108,-515.75174117,0.00027397,2]
[327421813,1716064242117,-507.52641166,0.00027397,2]
[327421814,1716064242127,-501.34609822,0.00027397,2]
[327421815,1716064242136,-500.0,0.00027397,2]
[327421816,1716064242145,-200.0,0.00027397,2]
[327421817,1716064242154,-500.0,0.00027397,2]
[327421818,1716064242164,-500.0,0.00027397,2]
[327421819,1716064242173,-500.0,0.00027397,2]
[327421820,1716064242183,-512.20943451,0.00027397,2]
[327421821,1716064242193,-347.73609211,0.00027397,2]
[327421822,1716064242203,-169.99106051,0.00027397,2]
[327421823,1716064242212,-356.06258093,0.00027397,2]
[327421824,1716064242222,-500.0,0.00027397,2]
[327421825,1716064242232,-501.41612825,0.00027397,2]
[327421826,1716064242241,-500.0,0.00027397,2]
[327421827,1716064242251,-500.0,0.00027397,2]
[327421828,1716064242261,-500.0,0.00027397,2]
[327421829,1716064242271,-2003.52222916,0.00027397,2]
[327421830,1716064242280,-500.0,0.00027397,2]
[327421831,1716064242290,-500.0,0.00027397,2]
[327421832,1716064242380,-500.0,0.00027397,2]
[327421833,1716064242399,-226.12188483,0.00027397,2]
[327421834,1716064242409,-500.0,0.00027397,2]
[327421835,1716064242418,-500.0,0.00027397,2]
[327421837,1716064242428,-500.0,0.00027397,2]
[327421839,1716064242438,-500.0,0.00027397,2]
[327421841,1716064242447,-500.0,0.00027397,2]
[327421843,1716064242457,-500.0,0.00027397,2]
[327421845,1716064242467,-578.57,0.00027397,2]
[327421847,1716064242477,-500.0,0.00027397,2]
[327421850,1716064242487,-500.0,0.00027397,2]
[327421854,1716064242496,-500.0,0.00027397,2]
[327421857,1716064242506,-500.0,0.00027397,2]
[327421860,1716064242516,-500.0,0.00027397,2]
[327421862,1716064242525,-527.75422401,0.00027397,2]
[327421864,1716064242535,-500.0,0.00027397,2]
[327421866,1716064242544,-500.0,0.00027397,2]
[327421868,1716064242554,-500.0,0.00027397,2]
[327421869,1716064242564,-500.0,0.00027397,2]
[327421871,1716064242573,-1239.14,0.00027397,2]
[327421873,1716064242583,-500.0,0.00027397,2]
[327421874,1716064242592,-500.0,0.00027397,2]
[327421875,1716064242606,-500.0,0.00027397,2]
[327421876,1716064242616,-500.0,0.00027397,2]
[327421877,1716064242626,-500.0,0.00027397,2]
[327421878,1716064242635,-991.51,0.00027397,2]
[327421879,1716064242646,-500.0,0.00027397,2]
[327421880,1716064242656,-2677.54,0.00027397,2]
[327421881,1716064242665,-500.0,0.00027397,2]
[327421882,1716064242676,-387.49561249,0.00027397,2]
[327421883,1716064242686,-500.0,0.00027397,2]
[327421884,1716064242696,-500.0,0.00027397,2]
[327421885,1716064242705,-500.0,0.00027397,2]
[327421886,1716064242714,-500.0,0.00027397,2]
[327421887,1716064242723,-500.0,0.00027397,2]
[327421888,1716064242732,-500.0,0.00027397,2]
[327421889,1716064242741,-500.0,0.00027397,2]
[327421890,1716064242751,-500.0,0.00027397,2]
[327421891,1716064242760,-500.0,0.00027397,2]
[327421892,1716064242770,-500.0,0.00027397,2]
[327421893,1716064242780,-500.0,0.00027397,2]
[327421894,1716064242789,-500.0,0.00027397,2]
[327421895,1716064242799,-504.57212948,0.00027397,2]
[327421896,1716064242808,-500.0,0.00027397,2]
[327421897,1716064242818,-500.0,0.00027397,2]
[327421898,1716064242827,-954.32,0.00027397,2]
[327421899,1716064242837,-500.0,0.00027397,2]
[327421900,1716064242846,-500.0,0.00027397,2]
[327421901,1716064242856,-675.45,0.00027397,2]
[327421902,1716064242866,-516.46821417,0.00027397,2]